[Event "Titled Tuesday Blitz November 29 Late 2022"]
[White "Radovanovic, Dusan"]
[Black "Janaszak, Dawid"]
[WhiteFideId "926868"]
[BlackFideId "1119206"]
[WhiteElo "2341"]
[BlackElo "2226"]
[Result "1/2-1/2"]
[Round "09"]
[TimeControl "180+1"]
[Date "2022.11.30"]
[WhiteClock "0:00:09"]
[BlackClock "0:00:07"]

1. e4 {[%clk 0:03:00]}  e6 {[%clk 0:02:55]} 2. d4 {[%clk 0:03:00]}  b5 {[%clk 0:02:55]} 3. Bd3 {[%clk 0:02:53]}  Bb7 {[%clk 0:02:54]} 4. Nf3 {[%clk 0:02:53]}  c5 {[%clk 0:02:50]} 5. c3 {[%clk 0:02:52]}  a6 {[%clk 0:02:48]} 6. O-O {[%clk 0:02:51]}  Nf6 {[%clk 0:02:43]} 7. e5 {[%clk 0:02:49]}  Nd5 {[%clk 0:02:43]} 8. Ng5 {[%clk 0:02:50]}  Be7 {[%clk 0:02:38]} 9. Qh5 {[%clk 0:02:38]}  g6 {[%clk 0:02:27]} 10. Qh6 {[%clk 0:02:37]}  Bf8 {[%clk 0:02:26]} 11. Qh3 {[%clk 0:02:32]}  cxd4 {[%clk 0:02:11]} 12. Ne4 {[%clk 0:02:14]}  Qb6 {[%clk 0:01:56]} 13. Bg5 {[%clk 0:02:06]}  Nc6 {[%clk 0:01:53]} 14. Bf6 {[%clk 0:02:01]}  Nxf6 {[%clk 0:01:47]} 15. Nxf6+ {[%clk 0:02:00]}  Kd8 {[%clk 0:01:47]} 16. Qg3 {[%clk 0:01:39]}  Be7 {[%clk 0:01:29]} 17. Nd2 {[%clk 0:01:34]}  Bxf6 {[%clk 0:01:19]} 18. exf6 {[%clk 0:01:35]}  Qc7 {[%clk 0:01:20]} 19. Qh4 {[%clk 0:01:32]}  dxc3 {[%clk 0:01:09]} 20. bxc3 {[%clk 0:01:32]}  Ne5 {[%clk 0:01:09]} 21. Be4 {[%clk 0:01:24]}  d5 {[%clk 0:01:04]} 22. Bf3 {[%clk 0:01:01]}  Qxc3 {[%clk 0:01:01]} 23. Rfd1 {[%clk 0:01:01]}  Rc8 {[%clk 0:00:57]} 24. Be2 {[%clk 0:00:59]}  h5 {[%clk 0:00:40]} 25. Nb3 {[%clk 0:00:57]}  Nc4 {[%clk 0:00:36]} 26. Nd4 {[%clk 0:00:43]}  Kc7 {[%clk 0:00:26]} 27. Rac1 {[%clk 0:00:41]}  Qb2 {[%clk 0:00:26]} 28. Rc2 {[%clk 0:00:40]}  Qb4 {[%clk 0:00:23]} 29. Qf4+ {[%clk 0:00:31]}  Qd6 {[%clk 0:00:21]} 30. Qc1 {[%clk 0:00:20]}  Kb8 {[%clk 0:00:21]} 31. a4 {[%clk 0:00:19]}  e5 {[%clk 0:00:22]} 32. Nf3 {[%clk 0:00:16]}  Qa3 {[%clk 0:00:21]} 33. Rxc4 {[%clk 0:00:13]}  Qxc1 {[%clk 0:00:20]} 34. Rcxc1 {[%clk 0:00:14]}  Rxc1 {[%clk 0:00:17]} 35. Rxc1 {[%clk 0:00:14]}  e4 {[%clk 0:00:16]} 36. Ng5 {[%clk 0:00:14]}  bxa4 {[%clk 0:00:16]} 37. Rb1 {[%clk 0:00:12]}  Kc7 {[%clk 0:00:16]} 38. Nxf7 {[%clk 0:00:12]}  Rf8 {[%clk 0:00:16]} 39. Ne5 {[%clk 0:00:10]}  Rxf6 {[%clk 0:00:16]} 40. f3 {[%clk 0:00:09]}  a3 {[%clk 0:00:14]} 41. fxe4 {[%clk 0:00:07]}  dxe4 {[%clk 0:00:14]} 42. Ra1 {[%clk 0:00:07]}  Rb6 {[%clk 0:00:08]} 43. Rxa3 {[%clk 0:00:06]}  Rb2 {[%clk 0:00:08]} 44. Kf1 {[%clk 0:00:06]}  Rb1+ {[%clk 0:00:08]} 45. Kf2 {[%clk 0:00:06]}  Rb2 {[%clk 0:00:07]} 46. Ke3 {[%clk 0:00:06]}  g5 {[%clk 0:00:06]} 47. Nc4 {[%clk 0:00:05]}  Rb1 {[%clk 0:00:05]} 48. Nd2 {[%clk 0:00:06]}  Rg1 {[%clk 0:00:04]} 49. Kf2 {[%clk 0:00:04]}  Rh1 {[%clk 0:00:03]} 50. h3 {[%clk 0:00:02]}  g4 {[%clk 0:00:02]} 51. Re3 {[%clk 0:00:03]}  gxh3 {[%clk 0:00:01]} 52. Rxh3 {[%clk 0:00:03]}  Rxh3 {[%clk 0:00:01]} 53. gxh3 {[%clk 0:00:04]}  Kd6 {[%clk 0:00:02]} 54. Ke3 {[%clk 0:00:05]}  Ke5 {[%clk 0:00:03]} 55. Bxh5 {[%clk 0:00:05]}  Bd5 {[%clk 0:00:03]} 56. Bg6 {[%clk 0:00:05]}  a5 {[%clk 0:00:03]} 57. Bxe4 {[%clk 0:00:06]}  Be6 {[%clk 0:00:02]} 58. Bc2 {[%clk 0:00:06]}  Bxh3 {[%clk 0:00:02]} 59. Ba4 {[%clk 0:00:06]}  Be6 {[%clk 0:00:03]} 60. Ne4 {[%clk 0:00:06]}  Bd5 {[%clk 0:00:04]} 61. Nc3 {[%clk 0:00:06]}  Kd6 {[%clk 0:00:04]} 62. Nb5+ {[%clk 0:00:07]}  Kc5 {[%clk 0:00:04]} 63. Nc3 {[%clk 0:00:08]}  Kb4 {[%clk 0:00:05]} 64. Nxd5+ {[%clk 0:00:08]}  Kxa4 {[%clk 0:00:05]} 65. Nc3+ {[%clk 0:00:08]}  Kb3 {[%clk 0:00:06]} 66. Kd3 {[%clk 0:00:09]}  a4 {[%clk 0:00:07]} 67. Nxa4 {[%clk 0:00:09]} 1/2-1/2


[Site "https://www.chess.com"]

[Event "Titled Tuesday Blitz November 29 Late 2022"]
[White "Rios Escobar, Adan"]
[Black "Kovacevic, Radmila"]
[WhiteFideId "3403645"]
[BlackFideId "933171"]
[WhiteElo "2301"]
[BlackElo "2208"]
[Result "1-0"]
[Round "09"]
[TimeControl "180+1"]
[Date "2022.11.30"]
[WhiteClock "0:00:11"]
[BlackClock "0:00:12"]

1. d4 {[%clk 0:03:00]}  e5 {[%clk 0:02:57]} 2. dxe5 {[%clk 0:03:00]}  Nc6 {[%clk 0:02:57]} 3. Nf3 {[%clk 0:03:00]}  Qe7 {[%clk 0:02:56]} 4. Bg5 {[%clk 0:02:58]}  Qb4+ {[%clk 0:02:55]} 5. Nc3 {[%clk 0:02:59]}  Qxb2 {[%clk 0:02:55]} 6. Bd2 {[%clk 0:02:59]}  Bb4 {[%clk 0:02:54]} 7. Rb1 {[%clk 0:02:57]}  Qxc3 {[%clk 0:02:54]} 8. Bxc3 {[%clk 0:02:57]}  Bxc3+ {[%clk 0:02:55]} 9. Nd2 {[%clk 0:02:57]}  Bxe5 {[%clk 0:02:54]} 10. e4 {[%clk 0:02:57]}  Nf6 {[%clk 0:02:53]} 11. Bb5 {[%clk 0:02:53]}  a6 {[%clk 0:02:50]} 12. Bxc6 {[%clk 0:02:52]}  dxc6 {[%clk 0:02:51]} 13. O-O {[%clk 0:02:52]}  O-O {[%clk 0:02:41]} 14. Nc4 {[%clk 0:02:52]}  Bg4 {[%clk 0:02:04]} 15. Qc1 {[%clk 0:02:08]}  Bd4 {[%clk 0:01:55]} 16. Ne3 {[%clk 0:01:53]}  Be6 {[%clk 0:01:42]} 17. Rxb7 {[%clk 0:01:43]}  Bb6 {[%clk 0:01:00]} 18. Nf5 {[%clk 0:01:41]}  Nxe4 {[%clk 0:00:54]} 19. Ne7+ {[%clk 0:01:37]}  Kh8 {[%clk 0:00:53]} 20. Qf4 {[%clk 0:01:29]}  Nc3 {[%clk 0:00:32]} 21. Qh4 {[%clk 0:01:06]}  Rfe8 {[%clk 0:00:23]} 22. Re1 {[%clk 0:01:01]}  Bd5 {[%clk 0:00:19]} 23. Qb4 {[%clk 0:00:19]}  Nb5 {[%clk 0:00:14]} 24. c4 {[%clk 0:00:17]}  a5 {[%clk 0:00:13]} 25. Qd2 {[%clk 0:00:16]}  Bxc4 {[%clk 0:00:12]} 26. Nxc6 {[%clk 0:00:10]}  Rxe1+ {[%clk 0:00:10]} 27. Qxe1 {[%clk 0:00:11]}  Bd5 {[%clk 0:00:11]} 28. Rb8+ {[%clk 0:00:11]}  Rxb8 {[%clk 0:00:10]} 29. Nxb8 {[%clk 0:00:12]}  g6 {[%clk 0:00:10]} 30. Qe8+ {[%clk 0:00:11]}  Kg7 {[%clk 0:00:10]} 31. Qxb5 {[%clk 0:00:12]}  Be6 {[%clk 0:00:09]} 32. Nd7 {[%clk 0:00:11]}  Kh6 {[%clk 0:00:08]} 33. Nxb6 {[%clk 0:00:10]}  cxb6 {[%clk 0:00:08]} 34. Qxb6 {[%clk 0:00:11]}  Bxa2 {[%clk 0:00:08]} 35. Qxa5 {[%clk 0:00:11]}  Be6 {[%clk 0:00:09]} 36. Qd2+ {[%clk 0:00:11]}  Kg7 {[%clk 0:00:10]} 37. h4 {[%clk 0:00:11]}  h6 {[%clk 0:00:11]} 38. g3 {[%clk 0:00:11]}  Kh7 {[%clk 0:00:11]} 39. Qd4 {[%clk 0:00:12]}  h5 {[%clk 0:00:10]} 40. Qf6 {[%clk 0:00:12]}  Kh6 {[%clk 0:00:10]} 41. Kf1 {[%clk 0:00:11]}  Bh3+ {[%clk 0:00:10]} 42. Ke2 {[%clk 0:00:11]}  Bg4+ {[%clk 0:00:11]} 43. Ke3 {[%clk 0:00:12]}  Be6 {[%clk 0:00:12]} 44. Qh8# {[%clk 0:00:11]} 1-0


[Site "https://www.chess.com"]

[Event "Titled Tuesday Blitz November 29 Late 2022"]
[White "Sadhwani, Raunak"]
[Black "Kamsky, Gata"]
[WhiteFideId "35093487"]
[BlackFideId "2000024"]
[WhiteElo "2656"]
[BlackElo "2666"]
[Result "1/2-1/2"]
[Round "09"]
[TimeControl "180+1"]
[Date "2022.11.30"]
[WhiteClock "0:00:03"]
[BlackClock "0:00:09"]

1. c4 {[%clk 0:02:55]}  g6 {[%clk 0:02:57]} 2. Nc3 {[%clk 0:02:54]}  Bg7 {[%clk 0:02:56]} 3. d4 {[%clk 0:02:54]}  d6 {[%clk 0:02:55]} 4. e4 {[%clk 0:02:54]}  Nf6 {[%clk 0:02:53]} 5. Nf3 {[%clk 0:02:55]}  O-O {[%clk 0:02:52]} 6. Be2 {[%clk 0:02:55]}  e5 {[%clk 0:02:50]} 7. O-O {[%clk 0:02:56]}  Nc6 {[%clk 0:02:48]} 8. d5 {[%clk 0:02:56]}  Ne7 {[%clk 0:02:48]} 9. Ne1 {[%clk 0:02:52]}  Nd7 {[%clk 0:02:47]} 10. Nd3 {[%clk 0:02:50]}  f5 {[%clk 0:02:46]} 11. f3 {[%clk 0:02:49]}  f4 {[%clk 0:02:40]} 12. b4 {[%clk 0:02:49]}  a5 {[%clk 0:02:37]} 13. bxa5 {[%clk 0:02:49]}  c5 {[%clk 0:02:30]} 14. Nb5 {[%clk 0:02:42]}  Ra6 {[%clk 0:02:22]} 15. Bd2 {[%clk 0:02:38]}  g5 {[%clk 0:02:21]} 16. Kh1 {[%clk 0:02:36]}  Ng6 {[%clk 0:02:20]} 17. Rg1 {[%clk 0:02:35]}  Rf7 {[%clk 0:02:18]} 18. g3 {[%clk 0:02:34]}  Bf8 {[%clk 0:01:58]} 19. gxf4 {[%clk 0:02:32]}  exf4 {[%clk 0:01:50]} 20. Bc3 {[%clk 0:02:26]}  Bg7 {[%clk 0:01:50]} 21. Qd2 {[%clk 0:02:13]}  Bxc3 {[%clk 0:01:44]} 22. Qxc3 {[%clk 0:02:14]}  Rg7 {[%clk 0:01:37]} 23. Rg2 {[%clk 0:01:11]}  Nde5 {[%clk 0:01:34]} 24. Nf2 {[%clk 0:00:59]}  Nf7 {[%clk 0:01:26]} 25. Rag1 {[%clk 0:00:58]}  h6 {[%clk 0:01:24]} 26. Nd3 {[%clk 0:00:44]}  Qxa5 {[%clk 0:01:19]} 27. Qf6 {[%clk 0:00:44]}  Qd8 {[%clk 0:01:18]} 28. Qxd8+ {[%clk 0:00:43]}  Nxd8 {[%clk 0:01:18]} 29. e5 {[%clk 0:00:36]}  Nxe5 {[%clk 0:01:16]} 30. Nxe5 {[%clk 0:00:36]}  dxe5 {[%clk 0:01:15]} 31. Bd3 {[%clk 0:00:36]}  Bd7 {[%clk 0:00:49]} 32. Re1 {[%clk 0:00:34]}  Bxb5 {[%clk 0:00:41]} 33. cxb5 {[%clk 0:00:35]}  Ra3 {[%clk 0:00:40]} 34. Rd2 {[%clk 0:00:28]}  Nf7 {[%clk 0:00:37]} 35. d6 {[%clk 0:00:28]}  Nxd6 {[%clk 0:00:36]} 36. Rxe5 {[%clk 0:00:29]}  Rc7 {[%clk 0:00:29]} 37. Be2 {[%clk 0:00:19]}  Nf7 {[%clk 0:00:28]} 38. Bc4 {[%clk 0:00:19]}  Kg7 {[%clk 0:00:28]} 39. b6 {[%clk 0:00:15]}  Rc6 {[%clk 0:00:12]} 40. Re7 {[%clk 0:00:16]}  Rxb6 {[%clk 0:00:11]} 41. Rxf7+ {[%clk 0:00:16]}  Kg6 {[%clk 0:00:11]} 42. Bd5 {[%clk 0:00:12]}  Rxf3 {[%clk 0:00:10]} 43. Bxf3 {[%clk 0:00:12]}  Kxf7 {[%clk 0:00:10]} 44. Rd7+ {[%clk 0:00:12]}  Kf6 {[%clk 0:00:10]} 45. Rxb7 {[%clk 0:00:13]}  Ra6 {[%clk 0:00:11]} 46. Rb2 {[%clk 0:00:13]}  c4 {[%clk 0:00:10]} 47. Rc2 {[%clk 0:00:13]}  c3 {[%clk 0:00:10]} 48. Kg2 {[%clk 0:00:11]}  Ke5 {[%clk 0:00:11]} 49. Rxc3 {[%clk 0:00:10]}  Rxa2+ {[%clk 0:00:10]} 50. Kh3 {[%clk 0:00:11]}  Rf2 {[%clk 0:00:10]} 51. Bg4 {[%clk 0:00:09]}  Ke4 {[%clk 0:00:09]} 52. Ra3 {[%clk 0:00:09]}  f3 {[%clk 0:00:09]} 53. Ra6 {[%clk 0:00:08]}  Rf1 {[%clk 0:00:08]} 54. Rxh6 {[%clk 0:00:08]}  f2 {[%clk 0:00:08]} 55. Rf6 {[%clk 0:00:08]}  Ke3 {[%clk 0:00:08]} 56. Rf3+ {[%clk 0:00:09]}  Ke2 {[%clk 0:00:09]} 57. Ra3+ {[%clk 0:00:09]}  Kd2 {[%clk 0:00:09]} 58. Rf3 {[%clk 0:00:06]}  Ke2 {[%clk 0:00:09]} 59. Rf8+ {[%clk 0:00:04]}  Ke3 {[%clk 0:00:09]} 60. Re8+ {[%clk 0:00:04]}  Kf4 {[%clk 0:00:09]} 61. Rf8+ {[%clk 0:00:03]}  Ke3 {[%clk 0:00:09]} 62. Rf5 {[%clk 0:00:02]}  Rg1 {[%clk 0:00:08]} 63. Rf3+ {[%clk 0:00:03]}  Ke2 {[%clk 0:00:09]} 64. Rf5+ {[%clk 0:00:03]}  Ke3 {[%clk 0:00:08]} 65. Rf3+ {[%clk 0:00:03]}  Ke2 {[%clk 0:00:08]} 66. Rf5+ {[%clk 0:00:03]}  Ke3 {[%clk 0:00:09]} 1/2-1/2


[Site "https://www.chess.com"]

[Event "Titled Tuesday Blitz November 29 Late 2022"]
[White "Salman, Pavel"]
[Black "Gasparyan, David"]
[WhiteFideId "24153753"]
[BlackFideId "13311980"]
[WhiteElo "2187"]
[BlackElo "2374"]
[Result "1-0"]
[Round "09"]
[TimeControl "180+1"]
[Date "2022.11.30"]
[WhiteClock "0:00:16"]
[BlackClock "0:00:54"]

1. Nf3 {[%clk 0:02:59]}  d5 {[%clk 0:02:58]} 2. g3 {[%clk 0:02:59]}  g6 {[%clk 0:02:58]} 3. Bg2 {[%clk 0:03:00]}  Bg7 {[%clk 0:02:59]} 4. O-O {[%clk 0:03:01]}  Nf6 {[%clk 0:02:59]} 5. d3 {[%clk 0:03:01]}  O-O {[%clk 0:03:00]} 6. Nbd2 {[%clk 0:03:02]}  Nbd7 {[%clk 0:02:57]} 7. e4 {[%clk 0:03:02]}  c6 {[%clk 0:02:54]} 8. Re1 {[%clk 0:02:56]}  Qc7 {[%clk 0:02:52]} 9. e5 {[%clk 0:02:56]}  Ng4 {[%clk 0:02:52]} 10. d4 {[%clk 0:02:56]}  f6 {[%clk 0:02:47]} 11. h3 {[%clk 0:02:43]}  Nh6 {[%clk 0:02:46]} 12. e6 {[%clk 0:02:33]}  Nb6 {[%clk 0:02:43]} 13. Nb3 {[%clk 0:02:33]}  Nf5 {[%clk 0:02:37]} 14. Bf4 {[%clk 0:02:32]}  Nd6 {[%clk 0:02:33]} 15. h4 {[%clk 0:02:24]}  Na4 {[%clk 0:02:32]} 16. Qc1 {[%clk 0:02:22]}  b6 {[%clk 0:02:31]} 17. c4 {[%clk 0:02:05]}  dxc4 {[%clk 0:02:28]} 18. Nbd2 {[%clk 0:02:05]}  b5 {[%clk 0:02:27]} 19. b3 {[%clk 0:01:58]}  Nb6 {[%clk 0:02:24]} 20. Ne4 {[%clk 0:01:55]}  Nd5 {[%clk 0:02:21]} 21. Nc5 {[%clk 0:01:15]}  c3 {[%clk 0:02:15]} 22. Re2 {[%clk 0:01:00]}  a5 {[%clk 0:02:13]} 23. Ne1 {[%clk 0:00:59]}  b4 {[%clk 0:02:10]} 24. Ned3 {[%clk 0:00:57]}  h6 {[%clk 0:01:49]} 25. Bxh6 {[%clk 0:00:54]}  Kh7 {[%clk 0:01:48]} 26. Bf4 {[%clk 0:00:51]}  Qb6 {[%clk 0:01:43]} 27. a3 {[%clk 0:00:47]}  bxa3 {[%clk 0:01:41]} 28. Rxa3 {[%clk 0:00:44]}  Nb5 {[%clk 0:01:39]} 29. Ra4 {[%clk 0:00:41]}  Nxf4 {[%clk 0:01:35]} 30. Qxf4 {[%clk 0:00:33]}  Bh6 {[%clk 0:01:35]} 31. Qe4 {[%clk 0:00:31]}  Rd8 {[%clk 0:01:31]} 32. h5 {[%clk 0:00:25]}  f5 {[%clk 0:01:31]} 33. hxg6+ {[%clk 0:00:25]}  Kxg6 {[%clk 0:01:31]} 34. Ne5+ {[%clk 0:00:22]}  Kf6 {[%clk 0:01:29]} 35. Qh4+ {[%clk 0:00:17]}  Bg5 {[%clk 0:01:27]} 36. Qh7 {[%clk 0:00:16]}  Nd6 {[%clk 0:00:54]} 37. Qg6# {[%clk 0:00:16]} 1-0


[Site "https://www.chess.com"]

[Event "Titled Tuesday Blitz November 29 Late 2022"]
[White "Santos Flores, Alberto"]
[Black "Adury, Anant"]
[WhiteFideId "3601234"]
[BlackFideId "30964687"]
[WhiteElo "2235"]
[BlackElo "2205"]
[Result "1-0"]
[Round "09"]
[TimeControl "180+1"]
[Date "2022.11.30"]
[WhiteClock "0:00:40"]
[BlackClock "0:01:04"]

1. d4 {[%clk 0:02:54]}  c6 {[%clk 0:03:00]} 2. c4 {[%clk 0:02:52]}  d5 {[%clk 0:03:01]} 3. Nf3 {[%clk 0:02:50]}  Nf6 {[%clk 0:03:01]} 4. cxd5 {[%clk 0:02:48]}  cxd5 {[%clk 0:03:01]} 5. Nc3 {[%clk 0:02:47]}  a6 {[%clk 0:03:02]} 6. Bf4 {[%clk 0:02:46]}  Nc6 {[%clk 0:03:03]} 7. Rc1 {[%clk 0:02:43]}  e6 {[%clk 0:03:03]} 8. e3 {[%clk 0:02:43]}  Bd6 {[%clk 0:03:03]} 9. Bxd6 {[%clk 0:02:41]}  Qxd6 {[%clk 0:03:04]} 10. Bd3 {[%clk 0:02:40]}  O-O {[%clk 0:03:04]} 11. O-O {[%clk 0:02:38]}  b5 {[%clk 0:03:04]} 12. a4 {[%clk 0:02:37]}  b4 {[%clk 0:03:03]} 13. Nb1 {[%clk 0:02:38]}  Bd7 {[%clk 0:03:02]} 14. Nbd2 {[%clk 0:02:37]}  Na5 {[%clk 0:03:02]} 15. b3 {[%clk 0:02:32]}  Rfc8 {[%clk 0:03:00]} 16. Rxc8+ {[%clk 0:02:27]}  Rxc8 {[%clk 0:02:59]} 17. Qe2 {[%clk 0:02:26]}  Ra8 {[%clk 0:02:56]} 18. Rc1 {[%clk 0:02:24]}  Nc6 {[%clk 0:02:56]} 19. Rc5 {[%clk 0:02:17]}  a5 {[%clk 0:02:44]} 20. Bb5 {[%clk 0:02:15]}  Rc8 {[%clk 0:02:42]} 21. Bxc6 {[%clk 0:02:04]}  Rxc6 {[%clk 0:02:43]} 22. Rxa5 {[%clk 0:01:57]}  Rc1+ {[%clk 0:02:42]} 23. Nf1 {[%clk 0:01:57]}  Qc6 {[%clk 0:02:22]} 24. Ne5 {[%clk 0:01:50]}  Qc8 {[%clk 0:02:19]} 25. Nxd7 {[%clk 0:01:40]}  Nxd7 {[%clk 0:02:15]} 26. Rb5 {[%clk 0:01:40]}  g6 {[%clk 0:02:05]} 27. g3 {[%clk 0:01:39]}  Qc3 {[%clk 0:02:04]} 28. Kg2 {[%clk 0:01:00]}  Qxb3 {[%clk 0:01:57]} 29. Rb7 {[%clk 0:00:59]}  Nf6 {[%clk 0:01:52]} 30. Qf3 {[%clk 0:00:51]}  Kg7 {[%clk 0:01:50]} 31. g4 {[%clk 0:00:49]}  g5 {[%clk 0:01:43]} 32. Ng3 {[%clk 0:00:45]}  Qd3 {[%clk 0:01:03]} 33. Nh5+ {[%clk 0:00:41]}  Nxh5 {[%clk 0:01:03]} 34. Qxf7+ {[%clk 0:00:40]}  Kh6 {[%clk 0:01:04]} 35. Qxh5# {[%clk 0:00:40]} 1-0


[Site "https://www.chess.com"]

[Event "Titled Tuesday Blitz November 29 Late 2022"]
[White "Seletsky, Grigory"]
[Black "Han, Yichen"]
[WhiteFideId "14112191"]
[BlackFideId "1054430"]
[WhiteElo "2492"]
[BlackElo "2323"]
[Result "0-1"]
[Round "09"]
[TimeControl "180+1"]
[Date "2022.11.30"]
[WhiteClock "0:00:01"]
[BlackClock "0:00:14"]

1. d4 {[%clk 0:02:57]}  d5 {[%clk 0:02:57]} 2. c4 {[%clk 0:02:55]}  e6 {[%clk 0:02:55]} 3. cxd5 {[%clk 0:02:54]}  exd5 {[%clk 0:02:55]} 4. Nc3 {[%clk 0:02:55]}  c6 {[%clk 0:02:55]} 5. Qc2 {[%clk 0:02:53]}  Bd6 {[%clk 0:02:48]} 6. Nf3 {[%clk 0:02:51]}  Be6 {[%clk 0:02:44]} 7. Bg5 {[%clk 0:02:51]}  Nf6 {[%clk 0:02:41]} 8. e3 {[%clk 0:02:51]}  O-O {[%clk 0:02:41]} 9. Bd3 {[%clk 0:02:51]}  h6 {[%clk 0:02:36]} 10. Bh4 {[%clk 0:02:48]}  Nbd7 {[%clk 0:02:37]} 11. Bg3 {[%clk 0:02:40]}  Qe7 {[%clk 0:02:33]} 12. Bxd6 {[%clk 0:02:38]}  Qxd6 {[%clk 0:02:34]} 13. O-O {[%clk 0:02:37]}  b5 {[%clk 0:02:30]} 14. a4 {[%clk 0:02:33]}  b4 {[%clk 0:02:30]} 15. Ne2 {[%clk 0:02:31]}  Rfc8 {[%clk 0:02:27]} 16. Rfc1 {[%clk 0:02:26]}  a5 {[%clk 0:02:25]} 17. h3 {[%clk 0:02:20]}  c5 {[%clk 0:02:25]} 18. dxc5 {[%clk 0:02:19]}  Nxc5 {[%clk 0:02:25]} 19. Qd1 {[%clk 0:02:19]}  Nfe4 {[%clk 0:02:09]} 20. Ned4 {[%clk 0:02:18]}  Bd7 {[%clk 0:02:07]} 21. Bb5 {[%clk 0:02:08]}  Bxb5 {[%clk 0:01:48]} 22. Nxb5 {[%clk 0:02:08]}  Qf6 {[%clk 0:01:45]} 23. Qd4 {[%clk 0:01:55]}  Qxd4 {[%clk 0:01:34]} 24. Nbxd4 {[%clk 0:01:43]}  Nd3 {[%clk 0:01:35]} 25. Rxc8+ {[%clk 0:01:34]}  Rxc8 {[%clk 0:01:35]} 26. b3 {[%clk 0:01:27]}  Nexf2 {[%clk 0:01:31]} 27. Rf1 {[%clk 0:01:19]}  Ne4 {[%clk 0:01:30]} 28. Nf5 {[%clk 0:01:16]}  Rc1 {[%clk 0:01:25]} 29. Ne7+ {[%clk 0:01:14]}  Kf8 {[%clk 0:01:20]} 30. Nxd5 {[%clk 0:01:13]}  Nec5 {[%clk 0:01:12]} 31. Nd4 {[%clk 0:01:10]}  Rxf1+ {[%clk 0:01:10]} 32. Kxf1 {[%clk 0:01:11]}  Nc1 {[%clk 0:01:10]} 33. Nb6 {[%clk 0:00:21]}  N1xb3 {[%clk 0:01:10]} 34. Nxb3 {[%clk 0:00:21]}  Nxb3 {[%clk 0:01:10]} 35. Nc4 {[%clk 0:00:19]}  Nc5 {[%clk 0:00:55]} 36. Nxa5 {[%clk 0:00:17]}  b3 {[%clk 0:00:56]} 37. Nc4 {[%clk 0:00:16]}  Nxa4 {[%clk 0:00:56]} 38. Nd2 {[%clk 0:00:12]}  b2 {[%clk 0:00:56]} 39. Nb1 {[%clk 0:00:11]}  Ke7 {[%clk 0:00:54]} 40. Ke2 {[%clk 0:00:11]}  Ke6 {[%clk 0:00:52]} 41. Kd3 {[%clk 0:00:12]}  Ke5 {[%clk 0:00:51]} 42. Kc4 {[%clk 0:00:08]}  Ke4 {[%clk 0:00:49]} 43. Kb5 {[%clk 0:00:08]}  Kd3 {[%clk 0:00:41]} 44. Kxa4 {[%clk 0:00:08]}  Kc2 {[%clk 0:00:41]} 45. Na3+ {[%clk 0:00:07]}  Kc1 {[%clk 0:00:42]} 46. Kb4 {[%clk 0:00:06]}  b1=Q+ {[%clk 0:00:42]} 47. Nxb1 {[%clk 0:00:06]}  Kxb1 {[%clk 0:00:43]} 48. Kc5 {[%clk 0:00:06]}  Kc2 {[%clk 0:00:43]} 49. Kd6 {[%clk 0:00:07]}  Kd3 {[%clk 0:00:42]} 50. Ke7 {[%clk 0:00:06]}  f5 {[%clk 0:00:22]} 51. Kf7 {[%clk 0:00:05]}  Kxe3 {[%clk 0:00:22]} 52. Kxg7 {[%clk 0:00:04]}  Kf2 {[%clk 0:00:23]} 53. Kg6 {[%clk 0:00:04]}  f4 {[%clk 0:00:23]} 54. Kf5 {[%clk 0:00:04]}  Kg3 {[%clk 0:00:23]} 55. Ke4 {[%clk 0:00:04]}  h5 {[%clk 0:00:22]} 56. h4 {[%clk 0:00:04]}  Kg4 {[%clk 0:00:21]} 57. Ke5 {[%clk 0:00:03]}  Kg3 {[%clk 0:00:19]} 58. Ke4 {[%clk 0:00:03]}  f3 {[%clk 0:00:13]} 59. gxf3 {[%clk 0:00:02]}  Kxh4 {[%clk 0:00:13]} 60. f4 {[%clk 0:00:01]}  Kg4 {[%clk 0:00:14]} 0-1


[Site "https://www.chess.com"]

[Event "Titled Tuesday Blitz November 29 Late 2022"]
[White "Tarnowska, Aleksandra"]
[Black "Leebit02"]
[WhiteFideId "1180967"]
[WhiteElo "1776"]
[BlackElo "2303"]
[Result "0-1"]
[Round "09"]
[TimeControl "180+1"]
[Date "2022.11.30"]
[WhiteClock "0:00:01"]
[BlackClock "0:00:31"]

1. e4 {[%clk 0:03:00]}  c5 {[%clk 0:02:59]} 2. Nf3 {[%clk 0:02:58]}  Nc6 {[%clk 0:03:00]} 3. Bb5 {[%clk 0:02:56]}  g6 {[%clk 0:03:00]} 4. O-O {[%clk 0:02:55]}  Bg7 {[%clk 0:02:59]} 5. c3 {[%clk 0:02:54]}  Nf6 {[%clk 0:02:59]} 6. Re1 {[%clk 0:02:38]}  O-O {[%clk 0:02:59]} 7. d4 {[%clk 0:02:31]}  d5 {[%clk 0:03:00]} 8. e5 {[%clk 0:02:26]}  Ne4 {[%clk 0:03:00]} 9. Nbd2 {[%clk 0:02:17]}  Bf5 {[%clk 0:02:56]} 10. Nxe4 {[%clk 0:02:04]}  dxe4 {[%clk 0:02:51]} 11. Bxc6 {[%clk 0:02:02]}  bxc6 {[%clk 0:02:51]} 12. Ng5 {[%clk 0:01:39]}  cxd4 {[%clk 0:02:47]} 13. cxd4 {[%clk 0:01:24]}  c5 {[%clk 0:02:44]} 14. Nxe4 {[%clk 0:00:45]}  cxd4 {[%clk 0:02:41]} 15. Ng3 {[%clk 0:00:42]}  Be6 {[%clk 0:02:34]} 16. Bf4 {[%clk 0:00:34]}  Qd5 {[%clk 0:02:29]} 17. Qd2 {[%clk 0:00:34]}  Rfd8 {[%clk 0:02:21]} 18. b3 {[%clk 0:00:30]}  Rd7 {[%clk 0:02:05]} 19. Rad1 {[%clk 0:00:27]}  Rad8 {[%clk 0:02:05]} 20. h3 {[%clk 0:00:23]}  Qb7 {[%clk 0:01:56]} 21. Qd3 {[%clk 0:00:21]}  a5 {[%clk 0:01:46]} 22. h4 {[%clk 0:00:21]}  h5 {[%clk 0:01:46]} 23. Bd2 {[%clk 0:00:16]}  Qa7 {[%clk 0:01:38]} 24. Bg5 {[%clk 0:00:08]}  a4 {[%clk 0:01:36]} 25. bxa4 {[%clk 0:00:08]}  Qxa4 {[%clk 0:01:36]} 26. a3 {[%clk 0:00:08]}  Ra8 {[%clk 0:01:28]} 27. Ra1 {[%clk 0:00:07]}  Ra5 {[%clk 0:01:24]} 28. Bf4 {[%clk 0:00:06]}  Rc5 {[%clk 0:01:13]} 29. Rec1 {[%clk 0:00:06]}  Rdc7 {[%clk 0:01:10]} 30. Rxc5 {[%clk 0:00:05]}  Rxc5 {[%clk 0:01:11]} 31. Bg5 {[%clk 0:00:06]}  Rc7 {[%clk 0:00:59]} 32. Bf4 {[%clk 0:00:03]}  Rc3 {[%clk 0:00:54]} 33. Qd2 {[%clk 0:00:03]}  Rc2 {[%clk 0:00:49]} 34. Qd3 {[%clk 0:00:03]}  Bd5 {[%clk 0:00:42]} 35. Rb1 {[%clk 0:00:03]}  Rc8 {[%clk 0:00:37]} 36. Ne2 {[%clk 0:00:03]}  Rc4 {[%clk 0:00:32]} 37. Rb8+ {[%clk 0:00:02]}  Kh7 {[%clk 0:00:33]} 38. Ng3 {[%clk 0:00:02]}  Qc2 {[%clk 0:00:31]} 39. Qxc2 {[%clk 0:00:02]}  Rxc2 {[%clk 0:00:31]} 40. Rd8 {[%clk 0:00:02]}  e6 {[%clk 0:00:32]} 41. a4 {[%clk 0:00:01]}  d3 {[%clk 0:00:31]} 42. a5 {[%clk 0:00:01]}  Ra2 {[%clk 0:00:31]} 0-1


[Site "https://www.chess.com"]